Cogmind - Beta 10.2 *** ADVENTURER MODE // 2022.02.26 @ 03:36:18 Player: woegarden Result: Self-destructed Performance ------------- Evolutions (3) 1500 Regions Visited (7) 1400 Robots Destroyed (32) 160 Value Destroyed (1342) 1342 Prototype IDs (23) 460 Alien Tech Used (0) 0 Bonus (1052) 1052 TOTAL SCORE: 5914 Bonus ------- High Alert Combat Kills 17 Follower Combat Kills 35 Entered Garrisons 200 Used RIF Installer 500 Aligned with FarCom 300 Cogmind --------- Core Integrity 700/700 Matter 81/300 Energy 220/220 System Corruption 0% Temperature Cool (0) Movement Treading (160) Location -7/Factory Parts ------- > --- POWER (2) -------- Light Nuclear Core Light Nuclear Core > --- PROPULSION (4) --- Light Treads Light Treads Light Treads Light Treads > --- UTILITY (3) ------ Large Storage Unit Large Storage Unit Modified TNC > --- WEAPON (4) ------- XL Autogun Array > --- INVENTORY (16) --- Light Treads Thermal Generator Compact Battery (300) Transmission Jammer Relay Coupler [NC] (29) Relay Coupler [Swarmer] (46) Relay Coupler [Brawler] (37) Relay Coupler [Hunter] (21) PSU Rigger Missile Launcher Mining Claw Peak State ------------ > --- POWER ------------ Light Nuclear Core Light Nuclear Core > --- PROPULSION ------- Light Treads Light Treads Light Treads Light Treads > --- UTILITY ---------- Large Storage Unit Large Storage Unit Modified TNC > --- WEAPON ----------- XL Autogun Array > --- INVENTORY -------- Light Treads Thermal Generator Compact Battery Transmission Jammer Relay Coupler [NC] Relay Coupler [Swarmer] Relay Coupler [Brawler] Relay Coupler [Hunter] PSU Rigger Missile Launcher Mining Claw [Rating: 57] Favorites ----------- Power Light Nuclear Core Engine Ion Engine Power Core Light Nuclear Core Propulsion Light Treads Treads Light Treads Leg Aluminum Leg Utility Large Storage Unit Device Tractor Beam Storage Large Storage Unit Processor Modified TNC Weapon Assault Rifle Energy Gun Particle Gun Ballistic Gun Assault Rifle Ballistic Cannon Improved Light Cannon Launcher Missile Launcher Slashing Weapon Mining Claw Build | -11 -10 -10 -10 -9 -8 -8 -7 ------- Run | Scr Mat Min Exi Min Mat Gar Fac Slots Evolved 6 | . . . . . 4 . 2 Power 1 | . . . . . . . 1 Propulsion 2 | . . . . . 2 . . Utility 1 | . . . . . . . 1 Weapon 2 | . . . . . 2 . . Parts Attached 25 | 6 6 . 3 2 3 3 2 Power 3 | 1 . . 1 . . . 1 Engine 1 | 1 . . . . . . . Core 2 | . . . 1 . . . 1 Reactor . | . . . . . . . . Propulsion 7 | 1 2 . 2 . 2 . . Treads 4 | . . . 2 . 2 . . Leg 3 | 1 2 . . . . . . Wheel . | . . . . . . . . Hover . | . . . . . . . . Flight . | . . . . . . . . Utility 5 | 2 2 . . . . . 1 Device 1 | 1 . . . . . . . Storage 3 | 1 2 . . . . . . Processor 1 | . . . . . . . 1 Hackware . | . . . . . . . . Protection . | . . . . . . . . Artifact . | . . . . . . . . Weapon 10 | 2 2 . . 2 1 3 . Energy Gun 1 | . 1 . . . . . . Energy Cannon . | . . . . . . . . Ballistic Gun 6 | 2 1 . . 1 1 1 . Ballistic Cannon 1 | . . . . 1 . . . Launcher 1 | . . . . . . 1 . Special Weapon . | . . . . . . . . Impact Weapon . | . . . . . . . . Slashing Weapon 1 | . . . . . . 1 . Piercing Weapon . | . . . . . . . . Special Melee Weapon . | . . . . . . . . Unidentified Prototypes . | . . . . . . . . Parts Lost . | . . . . . . . . Power . | . . . . . . . . Propulsion . | . . . . . . . . Utility . | . . . . . . . . Weapon . | . . . . . . . . Highest Loss Streak . | . . . . . . . . Average Slot Usage (%) 91 | . 98 100 100 100 72 73 76 Engine 5 | . 14 14 4 . . . . Core 6 | . . . 9 14 9 9 15 Treads 18 | . . . 19 28 35 36 30 Leg 11 | . 26 28 8 . . . . Storage 24 | . 25 28 28 28 18 18 15 Ballistic Gun 20 | . 21 28 28 22 9 7 7 Naked Turns . | . . . . . . . . Heaviest Build 57 | 14 42 41 41 43 52 52 57 Greatest Support 80 | 10 20 20 40 40 80 80 80 Greatest Overweight (x) 2 | 1 2 2 2 1 . . . Average Overweight (x) 1 | . 1 2 1 1 . . . Largest Inventory Capacity 16 | 6 16 16 16 16 16 16 16 Average Capacity 15 | 5 14 16 16 16 16 16 16 Most Carried 16 | 6 13 13 16 16 15 16 12 Average Carried 13 | 4 9 12 14 15 11 13 11 Final Capacity 16 | 6 16 16 16 16 16 16 16 Final Carried 16 | 6 13 13 16 16 13 13 11 Class Distribution -------------------- 74% | Mutant 23% | Skirmisher Dominant Class ---------------- Mutant | -10/Materials Mutant | -10/Mines Mutant | -10/Exiles Mutant | -9/Mines Skirmisher | -8/Materials Skirmisher | -8/Garrison Scavenger-Skirmisher | -7/Factory Resources | -11 -10 -10 -10 -9 -8 -8 -7 ----------- Run | Scr Mat Min Exi Min Mat Gar Fac Matter Collected 1090 | 266 117 110 . 40 45 512 . Remotely 183 | 133 50 . . . . . . Salvage Created 1343 | 93 269 192 . . 237 552 . Parts 66 | 4 20 12 . . 10 20 . Haulers Intercepted 1 | . 1 . . . . . . Recyclers Shooed 1 | . 1 . . . . . . Parts Field Recycled . | . . . . . . . . Retrieved Matter . | . . . . . . . . Parts Self-Destructed . | . . . . . . . . Prevented . | . . . . . . . . Kills | -11 -10 -10 -10 -9 -8 -8 -7 ------- Run | Scr Mat Min Exi Min Mat Gar Fac Combat Hostiles Destroyed 30 | . 6 8 . . 5 11 . Guns 30 | . 6 8 . . 5 11 . Classes Destroyed 6 | 1 2 1 . . 1 1 . Hauler 1 | . 1 . . . . . . Recycler 1 | 1 . . . . . . . Swarmer 11 | . . 6 . . . 5 . Grunt 17 | . 6 2 . . 4 5 . Sentry 1 | . . . . . 1 . . Hunter 1 | . . . . . . 1 . Best Kill Streak 5 | 1 3 3 . . 5 4 . Combat Bots Only 5 | . 2 3 . . 5 4 . Max Kills in Single Turn 1 | 1 1 1 . . 1 1 . Gunslinging . | . . . . . . . . Exploded . | . . . . . . . . Melee . | . . . . . . . . Uniques/NPCs Destroyed . | . . . . . . . . Combat | -11 -10 -10 -10 -9 -8 -8 -7 -------- Run | Scr Mat Min Exi Min Mat Gar Fac Damage Taken 633 | . 191 143 . . 64 235 . Core 112 | . 26 40 . . 39 7 . Absorbed by Shields . | . . . . . . . . Core Remaining (%) 88 | 100 . . . 73 . 91 . Volleys Fired 80 | 1 19 14 . . 5 41 . Largest 2 | 2 2 2 . . 1 1 . Hottest 85 | 40 85 40 . . 60 60 . Shots Fired 108 | 2 32 28 . . 5 41 . Gun 106 | 2 32 28 . . 5 39 . Cannon . | . . . . . . . . Launcher 2 | . . . . . . 2 . Special . | . . . . . . . . Kinetic 103 | 2 29 28 . . 5 39 . Thermal 3 | . 3 . . . . . . Explosive 2 | . . . . . . 2 . Electromagnetic . | . . . . . . . . Robot Hit Streak 35 | 2 26 27 . . 15 35 . Robot Miss Streak 2 | . 1 2 . . 1 2 . Penetration Max . | . . . . . . . . Secondary Targets 3 | . 1 2 . . . . . Max Gunslinging Chain 1 | . 1 1 . . . . . Shots Hit Robots 87 | 2 28 20 . . 5 32 . Core Hits 76 | 2 15 11 . . 8 40 . Critical Hits 2 | . . 2 . . . . . Critical Kills 2 | . . 2 . . . . . Critical Parts Destroyed . | . . . . . . . . Melee Attacks 6 | . . . . . . 6 . Impact . | . . . . . . . . Slashing 6 | . . . . . . 6 . Piercing . | . . . . . . . . Sneak Attacks . | . . . . . . . . Combat Hostiles . | . . . . . . . . Follow-up Attacks . | . . . . . . . . Damage Inflicted 2860 | 28 357 235 . . 396 1844 . Guns 2859 | 28 356 235 . . 396 1844 . Cannons . | . . . . . . . . Explosions . | . . . . . . . . Melee . | . . . . . . . . Ramming 1 | . 1 . . . . . . Kinetic 2814 | 28 311 235 . . 396 1844 . Thermal 45 | . 45 . . . . . . Explosive . | . . . . . . . . Electromagnetic . | . . . . . . . . Impact . | . . . . . . . . Slashing . | . . . . . . . . Piercing . | . . . . . . . . Highest Corruption . | . . . . . . . . Average Corruption . | . . . . . . . . Corruption Purged . | . . . . . . . . Overload Shots . | . . . . . . . . Overflow Damage . | . . . . . . . . Projectiles . | . . . . . . . . Explosions . | . . . . . . . . Melee . | . . . . . . . . Knockbacks . | . . . . . . . . Impact . | . . . . . . . . Kinetic . | . . . . . . . . Secondary . | . . . . . . . . Self-Inflicted Damage . | . . . . . . . . Shots . | . . . . . . . . Rammed 1 | . 1 . . . . . . Targets Rammed 1 | . 1 . . . . . . Kicked . | . . . . . . . . Crushed . | . . . . . . . . Highest Temperature 198 | . 90 2 . . 145 198 . Average Temperature 78 | . 42 2 . . 83 84 . Received Heat Transfer 288 | . 138 24 . . 45 81 . Siege Activations . | . . . . . . . . Robots Corrupted . | . . . . . . . . Combat Hostiles . | . . . . . . . . Parts Fried . | . . . . . . . . Impact Corruptions . | . . . . . . . . Robots Melted . | . . . . . . . . Combat Hostiles . | . . . . . . . . Parts Melted . | . . . . . . . . Heat Transferred 111 | . 111 . . . . . . Parts Sabotaged . | . . . . . . . . Parts Stolen . | . . . . . . . . Parts Stripped . | . . . . . . . . Power Chain Reactions . | . . . . . . . . Missiles Intercepted . | . . . . . . . . Alert | -11 -10 -10 -10 -9 -8 -8 -7 ------- Run | Scr Mat Min Exi Min Mat Gar Fac Peak Influence 624 | 5 149 120 . . 108 624 283 Initial 283 | . 2 . . . . 60 283 Average 130 | 2 88 29 . . 4 355 283 Maximum Alert Level 2 | . . . . . . 2 1 Low Security (%) 72 | 100 100 100 . 100 100 12 . Level 1 16 | . . . . . . 48 100 Level 2 11 | . . . . . . 39 . Level 3 . | . . . . . . . . Level 4 . | . . . . . . . . Level 5 . | . . . . . . . . High Security . | . . . . . . . . Max Security . | . . . . . . . . Squads Dispatched 3 | . 1 . . . 2 . . Investigation 2 | . 1 . . . 1 . . Extermination . | . . . . . . . . Reinforcement . | . . . . . . . . Assault . | . . . . . . . . Garrison 1 | . . . . . 1 . . Intercept . | . . . . . . . . Construction Impeded . | . . . . . . . . Haulers Reinforced . | . . . . . . . . Stealth | -11 -10 -10 -10 -9 -8 -8 -7 --------- Run | Scr Mat Min Exi Min Mat Gar Fac Distress Signals 1 | . 1 . . . . . . Communications Jammed . | . . . . . . . . Distress Signals . | . . . . . . . . Times Spotted 37 | . 10 8 . . 5 14 . Peak Tracking Total 6 | . 5 3 . . 4 6 . Tactical Retreats . | . . . . . . . . Traps | -11 -10 -10 -10 -9 -8 -8 -7 ------- Run | Scr Mat Min Exi Min Mat Gar Fac Traps Triggered 2 | . 1 . . . . 1 . Indirectly . | . . . . . . . . Trap Hack Attempts . | . . . . . . . . Triggered . | . . . . . . . . Disarmed . | . . . . . . . . Reprogrammed . | . . . . . . . . Reused 1 | . . . . . . 1 . Traps Extracted . | . . . . . . . . Installed 3 | . . . . . . 3 . Triggered 1 | . . . . . . 1 . Machines | -11 -10 -10 -10 -9 -8 -8 -7 ---------- Run | Scr Mat Min Exi Min Mat Gar Fac Machines Disabled 2 | . . . . . . 2 . Max in Single Turn 1 | . . . . . . 1 . Garrison Relay 2 | . . . . . . 2 . Machines Sabotaged . | . . . . . . . . Garrisons Compromised . | . . . . . . . . Overloaded Fab Kills . | . . . . . . . . Fab Network Shutdowns . | . . . . . . . . Hacking | -11 -10 -10 -10 -9 -8 -8 -7 --------- Run | Scr Mat Min Exi Min Mat Gar Fac Machines Accessed 5 | . . . 4 . 1 . . Terminals . | . . . . . . . . Fabricators . | . . . . . . . . Repair Stations . | . . . . . . . . Recycling Units . | . . . . . . . . Scanalyzers . | . . . . . . . . Garrison Access 1 | . . . . . 1 . . Total Hacks 21 | . . . 20 . 1 . . Successful 21 | . . . 20 . 1 . . Failed . | . . . . . . . . Catastrophic . | . . . . . . . . Database Lockouts . | . . . . . . . . Manual 1 | . . . 1 . . . . Terminals . | . . . . . . . . Fabricators . | . . . . . . . . Repair Stations . | . . . . . . . . Recycling Units . | . . . . . . . . Scanalyzers . | . . . . . . . . Garrison Access 1 | . . . . . 1 . . Terminal Hacks 20 | . . . 20 . . . . Record 19 | . . . 19 . . . . EX-Prototype ID Bank 1 | . . . 1 . . . . Fabricator Hacks . | . . . . . . . . Repair Station Hacks . | . . . . . . . . Recycling Unit Hacks . | . . . . . . . . Scanalyzer . | . . . . . . . . Garrison Access Hacks 1 | . . . . . 1 . . Unlock Access 1 | . . . . . 1 . . Unauthorized Hacks . | . . . . . . . . Terminals . | . . . . . . . . Fabricators . | . . . . . . . . Repair Stations . | . . . . . . . . Recycling Units . | . . . . . . . . Scanalyzers . | . . . . . . . . Garrison Access . | . . . . . . . . Data Cores Recovered . | . . . . . . . . Used . | . . . . . . . . Hacking Detections . | . . . . . . . . Full Trace Events . | . . . . . . . . Feedback Events . | . . . . . . . . Feedback Blocked . | . . . . . . . . Robot Schematics Acquired . | . . . . . . . . Robots Built . | . . . . . . . . Matter . | . . . . . . . . Time . | . . . . . . . . Total Robot Build Rating . | . . . . . . . . Part Schematics Acquired . | . . . . . . . . Parts Built . | . . . . . . . . Matter . | . . . . . . . . Time . | . . . . . . . . Total Part Build Rating . | . . . . . . . . Parts Repaired . | . . . . . . . . Time . | . . . . . . . . Parts Recycled . | . . . . . . . . Recycled Matter . | . . . . . . . . Retrieved Matter . | . . . . . . . . Retrieved Components . | . . . . . . . . Parts Scanalyzed . | . . . . . . . . Part Schematics Acquired . | . . . . . . . . Parts Damaged . | . . . . . . . . Bothacking | -11 -10 -10 -10 -9 -8 -8 -7 ------------ Run | Scr Mat Min Exi Min Mat Gar Fac Used RIF Installer 1 | . . . . . . 1 . Robots Hacked . | . . . . . . . . Non-combat . | . . . . . . . . Combat . | . . . . . . . . Robot Hacks Applied . | . . . . . . . . Relay Couplers Released 7 | . . . . . . 7 . Machine Destruction 7 | . . . . . . 7 . Robots Rewired . | . . . . . . . . Allies Hacked . | . . . . . . . . Hacks Repelled . | . . . . . . . . Allies | -11 -10 -10 -10 -9 -8 -8 -7 -------- Run | Scr Mat Min Exi Min Mat Gar Fac Total Allies 3 | . . . . 3 . . . Largest Group 3 | . . . . 3 3 2 . Highest-Rated Group 40 | . . . . 40 40 24 . Highest-Rated Ally 16 | . . . . 16 16 16 . Total Orders . | . . . . . . . . Ally Attacks 16 | . . . . . 4 12 . Total Damage 131 | . . . . . 40 91 . Kills 1 | . . . . . . 1 . Allies Corrupted . | . . . . . . . . Allies Melted . | . . . . . . . . Intel | -11 -10 -10 -10 -9 -8 -8 -7 ------- Run | Scr Mat Min Exi Min Mat Gar Fac Robot Analysis Total . | . . . . . . . . Derelict Logs Recovered 1 | . . 1 . . . . . Drone Launches . | . . . . . . . . Drone Recoveries . | . . . . . . . . Exploration | -11 -10 -10 -10 -9 -8 -8 -7 ------------- Run | Scr Mat Min Exi Min Mat Gar Fac Turns Passed 4271 | 61 442 929 1143 443 273 875 105 Spaces Moved 2313 | 35 212 485 631 238 152 496 64 Core 7 | 7 . . . . . . . Treads 1380 | . . . 430 238 152 496 64 Legs 926 | 28 212 485 201 . . . . Wheels . | . . . . . . . . Hover . | . . . . . . . . Flight . | . . . . . . . . Fastest Speed 50 | 50 150 180 180 180 160 160 160 Average Speed 172 | 124 175 180 180 180 160 160 160 Slowest Speed 180 | 150 180 180 180 180 160 160 160 Overloaded Moves . | . . . . . . . . Propulsion Burnouts . | . . . . . . . . Robots Hopped . | . . . . . . . . Cave-ins Triggered . | . . . . . . . . Exploration Rate (%) 45 | 3 45 84 80 59 21 66 2 Regions Visited 7 Branch Regions 3 Pre-discovered Areas . | . . . . . . . . Known Exits Taken 1 | . . . . . 1 . . Unknown Exits Taken 5 | 1 1 1 1 1 . . . Scrap Searched 4 | . . 1 . 3 . . . Spaces Dug 33 | . . . . . . 33 . Terrain Destroyed 35 | . . . . . 2 33 . Melee . | . . . . . . . . Projectile 2 | . . . . . 2 . . AOE 33 | . . . . . . 33 . Terrain Rammed . | . . . . . . . . Walls Destroyed . | . . . . . . . . Machines Disabled . | . . . . . . . . Actions | -11 -10 -10 -10 -9 -8 -8 -7 --------- Run | Scr Mat Min Exi Min Mat Gar Fac Total 2521 | 47 250 515 639 252 184 568 66 Wait 35 | . . 9 . 11 15 . . Move 2307 | 34 211 484 630 237 152 495 64 Hop . | . . . . . . . . Pick Up 38 | 6 10 4 3 1 4 10 . Fast Attach 6 | 6 . . . . . . . Attach 9 | . 1 . . . 3 3 2 Detach 2 | . . . . . 2 . . Swap 10 | . 5 . 3 2 . . . Drop 24 | . 3 4 3 1 3 10 . Fire 80 | 1 19 14 . . 5 41 . Melee 6 | . . . . . . 6 . Ram . | . . . . . . . . Kick 1 | . 1 . . . . . . Crush . | . . . . . . . . Escape Stasis . | . . . . . . . . Rewire . | . . . . . . . . Trap 3 | . . . . . . 3 . Miscellaneous . | . . . . . . . . Route ------- -11/Scrapyard -10/Materials -10/Mines (discovered 2 exits: [*Mat] / *Exi) -10/Exiles (discovered 2 exits: [*Min x2]) -9/Mines (discovered 2 exits: *Mat x2) -8/Materials (discovered 2 exits: [*Fac] / Gar) -8/Garrison (discovered 2 exits: [*Fac x2]) -7/Factory History --------- Turn | Location | Event 2 | -11/Scrapyard | Met Revision 17 31 | -11/Scrapyard | Discovered new exit (range 16) 62 | -11/Scrapyard | Entered Materials 256 | -10/Materials | Discovered new exit (range 12) 310 | -10/Materials | Build established: Mutant 504 | -10/Materials | Entered Mines 776 | -10/Mines | Found a hidden stash of uninstalled traps 950 | -10/Mines | Discovered new exit (range 5) 1084 | -10/Mines | Learned Materials non-interactive machine intel 1424 | -10/Mines | Deemed a non-threat by the Exiles lab entrance 1425 | -10/Mines | Discovered new exit (range 5) 1433 | -10/Mines | Entered Exiles 1484 | -10/Exiles | Met 8R-AWN 1516 | -10/Exiles | Met EX-HEX 1572 | -10/Exiles | Met EX-BIN 1601 | -10/Exiles | Aligned with FarCom system 1603 | -10/Exiles | Given EX-Vault access code 1648 | -10/Exiles | Opened EX-Vault 1721 | -10/Exiles | Warned to stay clear of 0b10 Research branches 1801 | -10/Exiles | Found Modified TNC 1804 | -10/Exiles | Found PSU Rigger 1809 | -10/Exiles | Found XL Autogun Array 1896 | -10/Exiles | Met EX-DEC 2010 | -10/Exiles | Visited The Gauntlet 2144 | -10/Exiles | Discovered new exit (range 14) 2332 | -10/Exiles | Discovered new exit (range 15) 2576 | -10/Exiles | Stole three prototypes: Modified TNC, PSU Rigger, XL Autogun Array 2576 | -10/Exiles | Entered Mines 2580 | -9/Mines | Discovered new exit (range 10) 2687 | -9/Mines | Discovered new exit (range 8) 2898 | -9/Mines | Assisted by bots powering up and referring to "LRC-V3" 3019 | -9/Mines | Entered Materials 3019 | -8/Materials | Accompanied by 3 allies 3019 | -8/Materials | Evolved 4 slots: Propulsion x2, Weapon x2 3020 | -8/Materials | Loaded intel: 46 non-interactive machine locations 3277 | -8/Materials | Discovered new exit (range 12) 3280 | -8/Materials | Garrison activated, responded to threat 3292 | -8/Materials | Identified exit to Garrison 3292 | -8/Materials | Entered Garrison 3292 | -8/Garrison | Accompanied by 2 allies 3310 | -8/Garrison | Triggered checkpoint 3336 | -8/Garrison | Build established: Skirmisher 3390 | -8/Garrison | Triggered checkpoint 3398 | -8/Garrison | Garrison Relay disabled 3794 | -8/Garrison | Triggered checkpoint 3804 | -8/Garrison | Triggered checkpoint 3804 | -8/Garrison | Triggered checkpoint 3935 | -8/Garrison | Discovered new exit (range 15) 4010 | -8/Garrison | Triggered checkpoint 4021 | -8/Garrison | Garrison Relay disabled 4135 | -8/Garrison | Discovered new exit (range 9) 4160 | -8/Garrison | Installed Relay Interface Framework 4167 | -8/Garrison | Entered Factory 4167 | -7/Factory | Evolved 2 slots: Power x1, Utility x1 4169 | -7/Factory | FarCom data flow suspended 4272 | -7/Factory | Self-destructed Last Messages --------------- 04012_ Destroyed Lgt. Ion Engine. 04012_ S-10 Pest destroyed. 04021_ Garrison Relay disabled. 04021_ Relay Coupler [NC] tumbles out of relay unit. 04021_ Relay Coupler [Hunter] tumbles out of relay unit. 04021_ Relay Coupler [Swarmer] tumbles out of relay unit. 04023_ Acquired Relay Coupler [Hunter]. 04135_ EXIT=FOUND 04159_ Initiating installation procedure... 04160_ Relay Interface Framework installed. 04167_ Attempting to access garrison exit controls... RIF authorized. PARAMETERS=POWER_1,UTILITY_1 LOCATION=UNKNOWN GOAL=ESCAPE 04167_ Receiving FarCom transmissions... 04169_ FARCOM_MSG: Not cool, anonymous tester bot. We've taken inventory and discovered your thievery. Let's see how you like having parts stolen! 04169_ FarCom data flow suspended. Map ----- +----------------------------------------------------+ | ???????????????????????????????? | | ???????????????????????????????? | | ???????????????????????????????? | | ???????????????????????????????? | | ???????????????????????????????? | | ???????????????????????????????? | | ???????????????????????????????? | | ???????????????????????????????? | | ???????????????????????????????? | | ???????????????????????????????? | | ???????????????????????????????? | | ???##+##???????????????????????? | | ??? ???????????????????????? | | ???!!! ? ?????????????????????? | | ???!!! ? ?????????????????????? | | ????!! # ?????????????????????? | | ??? # ?????????????????????? | | ??""" # #####????????????????? | | #?""" # #????????????????? | | ? """ # #????????????????? | | ? + #????????????????? | | # """ # #????????????????? | | # """ # #???????#######??? | | # """ # #???????# #??? | | # # ######### #??? | | # """ @# #??? | | # """ # #??? | | # """ + #??? | | # # #??? | | ######### #??? | | ????????#####+######### #??? | | ?????????# # #??? | | ?????????# # #??? | | ?????????# + +??? | | ?????????# # #??? | | ?????????# # #??? | | ?????????############## #??? | | ?????????????????########+###### | | ?????????????????# [ | | ?????????????????# """ """ """ | | ?????????????????# """ """ """ | | ?????????????????# """ """ """ | | ?????????????????# | | ?????????????????# """ """ """ | | ?????????????????# """ """ """ | | ?????????????????# """ """ """ | | ?????????????????# | | ?????????????????############### | | | | | +----------------------------------------------------+ Best States ------------- Heat Dissipation 34 Energy Generation 23 Energy Capacity 250 Matter Stores 300 Matter Capacity 300 Sight Range 16 Terrain Scan Density 10 Resistance: KI 20 Resistance: TH 20 Resistance: EX 20 Resistance: EM 20 Resistance: I 20 Resistance: S 20 Resistance: P 20 Evasion (%) 50 Recoil Reduction 4 Offensive Hacking 10 Item Schematics ----------------- None Robot Schematics ------------------ None Fabricated ------------ Nothing Alien Tech Used ----------------- None Achievements -------------- None Challenges ------------ None Game ------ Seed CoolantBarrageField Manual? 0 Play Time 00:29:38 Cumulative 52.7 hours Start 2022.02.26 @ 03:05:31 End 2022.02.26 @ 03:36:18 Sessions 1 Manual Loads 0 Difficulty Adventurer Special Mode None Game No. 63 Rogue 29 Adventurer 34 Explorer 0 Win Type - Total 0 Types 0/0/0/0/0/0/0/0/0 Lore% 21 Gallery% 41 Achievement% 25 Wizard Run 0 Options --------- ASCII 0 Keyboard 0 Movement Mouse Keybinds 0 Fullscreen 2 Font 16/Proggy Map View 76x50 Tactical HUD 1 Map Filters NONE Filters NONE Steam 1 RUN: 153a8b66-1aee-4e04-b9dc-a6724ad4eb84